fUST/lending_fUST_20241206
["ID","MTS","AMOUNT","RATE_DAILY","PERIOD"]
[344456170,1733494043794,-595.53961691,0.00030136,7]
[344456171,1733494043817,-500.0,0.00030136,7]
[344456172,1733494043839,-500.0,0.00030136,7]
[344456173,1733494043860,-500.0,0.00030136,7]
[344456174,1733494043880,-429.23773248,0.00030136,7]
[344456175,1733494043902,-500.0,0.00030136,7]
[344456176,1733494043923,-500.0,0.00030136,7]
[344456177,1733494043948,-500.0,0.00030136,7]
[344456178,1733494043972,-500.0,0.00030136,7]
[344456179,1733494043994,-500.0,0.00030136,7]
[344456180,1733494044016,-500.0,0.00030136,7]
[344456181,1733494044038,-500.0,0.00030136,7]
[344456182,1733494044060,-500.0,0.00030136,7]
[344456183,1733494044081,-500.0,0.00030136,7]
[344456184,1733494044103,-500.0,0.00030136,7]
[344456185,1733494044123,-381.1591045,0.00030143,5]
[344456186,1733494044145,-245.06242261,0.00030439,7]
[344456187,1733494044167,-253.072352,0.0003044,7]
[344456188,1733494044194,-225.35,0.000305,2]
[344456189,1733494044217,-527.80099939,0.00030923,7]
[344456190,1733494044241,-15504.19561047,0.00030924,2]
[344456191,1733494044269,-151.0,0.00030924,7]
[344456192,1733494044291,-151.0,0.00030924,7]
[344456193,1733494044312,-151.0,0.00030924,7]
[344456194,1733494044334,-264.036834,0.00030934,7]
[344456195,1733494044358,-264.036834,0.00030934,7]
[344456196,1733494044379,-264.036834,0.00030934,7]
[344456197,1733494044401,-264.036834,0.00030934,7]
[344456198,1733494044423,-264.036834,0.00030934,7]
[344456199,1733494044453,-264.036834,0.00030934,7]
[344456200,1733494044474,-264.036834,0.00030934,7]
[344456201,1733494044497,-264.036834,0.00030934,7]
[344456202,1733494044518,-264.036834,0.00030934,7]
[344456203,1733494044540,-264.036834,0.00030934,7]
[344456204,1733494044564,-264.036834,0.00030934,7]
[344456205,1733494044586,-264.036834,0.00030934,7]
[344456206,1733494044607,-264.036834,0.00030934,7]
[344456207,1733494044628,-264.036834,0.00030934,7]
[344456208,1733494044648,-264.036834,0.00030934,7]
[344456209,1733494044670,-264.036834,0.00030934,7]
[344456210,1733494044693,-264.036834,0.00030934,7]
[344456211,1733494044714,-264.036834,0.00030934,7]
[344456212,1733494044736,-264.036834,0.00030934,7]
[344456213,1733494044758,-264.036835,0.00030934,7]
[344456214,1733494044779,-500.0,0.00030973,5]
[344456215,1733494044800,-500.0,0.00030973,5]
[344456216,1733494044822,-500.0,0.00030973,5]
[344456217,1733494044843,-299.00189142,0.0003099,2]
[344456218,1733494044864,-102503.89541214,0.00031,10]
[344456219,1733494044885,-159.0,0.00031,2]
[344456220,1733494044906,-5689.81,0.00031,2]
[344456221,1733494044927,-372.15,0.00031,30]
[344456222,1733494044950,-197.29,0.00031,30]
[344456223,1733494044971,-862.14856009,0.0003119,2]
[344456224,1733494114317,165.703084,0.00013973,2]
[344456272,1733494232008,-202.81,0.000304,2]
[344456273,1733494232018,-162.61674154,0.00030922,2]
[344456274,1733494232033,-383.87364943,0.00030922,2]
[344456356,1733494237806,-182.53,0.000305,2]
[344456358,1733494237816,-7205.60741426,0.00030922,2]
[344456360,1733494237825,-37058.48614073,0.00030923,10]
[344456362,1733494237836,-3045.41250105,0.00030923,2]
[344456364,1733494237850,-5401.06503763,0.00030923,10]
[344456366,1733494237865,-7970.69468142,0.00030923,10]
[344456369,1733494237880,-23723.90371,0.00030923,10]
[344456398,1733494239875,-24636.50000004,0.00030923,10]
[344456450,1733494242976,-6837.35880471,0.00030923,10]
[344456452,1733494242988,-157620.10823,0.00030923,10]
[344456590,1733494246536,-49980.85024728,0.000309,120]
[344456591,1733494246550,-7764.16145622,0.000309,120]
[344456592,1733494246561,-19833.27469826,0.000309,120]
[344456599,1733494804762,165.703084,0.00013973,2]
[344456613,1733495368189,-990.72330544,0.00021562,2]
[344456614,1733495368212,-3182.74626439,0.0002178,2]
[344456615,1733495369136,-1817.25373561,0.0002178,2]
[344456616,1733495369167,-160.0,0.00022,2]
[344456617,1733495369189,-300.0,0.00024999,2]
[344456618,1733495369211,-18489.37236497,0.00025,2]
[344456619,1733495410115,159.59644,0.00013973,2]
[344456670,1733495432237,-218.4540567,0.000249,2]
[344456672,1733495432248,-1060.37090621,0.00025,2]
[344456674,1733495432257,-250.0,0.0002562,2]
[344456676,1733495432267,-709.5845803,0.00026713,2]
[344456679,1733495432277,-230.0,0.00026874,2]
[344456681,1733495432286,-230.0,0.00027,2]
[344456683,1733495432296,-166.26393,0.00027029,2]
[344456685,1733495432305,-699.055859,0.00027137,2]
[344456688,1733495432315,-1137.765633,0.00027281,2]
[344456690,1733495432324,-230.0,0.0002793,2]
[344456692,1733495432334,-300.0,0.00027989,2]
[344456694,1733495432344,-300.0,0.00027989,2]
[344456696,1733495432354,-893.9396222,0.0002799,2]
[344456841,1733495438098,-6760.26349965,0.0002799,2]
[344456842,1733495438219,-1306.69883277,0.0002836,2]
[344456843,1733495438234,-2686.60179971,0.0002836,2]
[344456844,1733495438245,-8162.88696112,0.0002836,2]
[344456845,1733495438256,-12743.8124064,0.0002836,2]
[344456846,1733495438265,-183.29590742,0.000293,5]
[344456847,1733495438275,-235.0,0.00029327,2]
[344456848,1733495438284,-333.111,0.0002963,2]
[344456849,1733495438294,-1000.0,0.0002988,2]
[344456850,1733495438303,-17451.99593258,0.0003,2]
[344456903,1733495446146,-174.54293569,0.000292,2]
[344456904,1733495446156,-7278.10121902,0.0003,2]
[344456905,1733495446166,-501.32465683,0.00030136,7]
[344456906,1733495446176,-500.0,0.00030136,7]
[344456907,1733495446185,-418.35678524,0.00030136,7]
[344456908,1733495446195,-500.0,0.00030136,2]
[344456909,1733495446204,-420.0,0.00030228,2]
[344456910,1733495446216,-500.0,0.00030499,3]
[344456911,1733495446226,-164.28,0.000305,2]
[344456912,1733495446235,-420.0,0.00030788,2]
[344456913,1733495446243,-396.89608972,0.00030803,2]
[344456914,1733495446253,-685.64237768,0.00030823,2]
[344456915,1733495446262,-94222.95502227,0.00030899,120]
[344456916,1733495446271,-500.0,0.00030919,7]
[344456917,1733495446280,-500.0,0.00030919,2]
[344456918,1733495446289,-500.0,0.00030919,2]
[344456919,1733495446299,-500.0,0.00030919,2]
[344456920,1733495446308,-500.0,0.00030919,2]
[344456921,1733495446317,-500.0,0.00030919,2]
[344456922,1733495446327,-500.0,0.00030919,2]
[344456923,1733495446336,-500.0,0.00030919,2]
[344456924,1733495446345,-500.0,0.00030919,2]
[344456925,1733495446355,-500.0,0.00030919,2]
[344456926,1733495446364,-500.0,0.00030919,2]
[344456927,1733495446373,-490.45600439,0.00030919,7]
[344456928,1733495446382,-500.0,0.00030922,7]
[344456929,1733495446392,-450.80476537,0.00030922,7]
[344456930,1733495446400,-186.67242518,0.00030923,2]
[344456931,1733495446410,-205.74790816,0.00030923,2]
[344456932,1733495446419,-190.82151756,0.00030923,2]
[344456933,1733495446429,-279.24891623,0.00030923,2]
[344456934,1733495446441,-220.75108377,0.00030923,2]
[344456935,1733495446450,-500.0,0.00030923,2]
[344456936,1733495446462,-500.0,0.00030923,2]
[344456937,1733495446475,-500.0,0.00030923,2]
[344456938,1733495446484,-428.94391625,0.00030923,2]
[344456939,1733495556408,773.87797116,0.00025,10]
[344456943,1733495904591,403.48,0.00025,10]
[344456944,1733496081635,159.59644,0.00013973,2]
[344456945,1733496425147,-160.0,0.00022,2]
[344456946,1733496425169,-9190.57636082,0.000255,2]
[344456947,1733496425191,-300.0,0.00026567,2]
[344456948,1733496425212,-300.0,0.00026567,2]
[344456949,1733496425232,-443.0,0.00026567,2]
[344456950,1733496425254,-14358.0005501,0.00028187,2]
[344456951,1733496425275,-465.477149,0.00028207,2]
[344456952,1733496425296,-200.0,0.00028372,15]
[344456953,1733496425319,-315.7830074,0.00028384,2]
[344456954,1733496425422,-176.101605,0.00028432,2]
[344456955,1733496425460,-201.5906806,0.00028436,2]
[344456956,1733496425482,-420.0,0.00028735,2]
[344456957,1733496425506,-420.0,0.00029224,2]
[344456958,1733496425528,-335.394,0.0002963,2]
[344456959,1733496425550,-408.0,0.000301,14]
[344456960,1733496425571,-500.0,0.00030136,7]
[344456961,1733496425592,-197.04,0.000304,2]
[344456962,1733496425615,-176.101605,0.00030536,2]
[344456963,1733496425637,-184.56907137,0.00030773,2]
[344456964,1733496425660,-184.56907137,0.00030776,2]
[344456965,1733496425682,-184.56907137,0.00030779,2]
[344456966,1733496425704,-184.56907137,0.00030782,2]
[344456967,1733496425725,-184.56907137,0.00030786,2]
[344456968,1733496425746,-184.56907137,0.00030789,2]
[344456969,1733496425767,-184.56907137,0.00030792,2]
[344456970,1733496425787,-6588.39267793,0.00030795,2]
[344456971,1733496425807,-184.56907137,0.00030795,2]
[344456972,1733496425827,-502.78573378,0.00030873,5]
[344456973,1733496425847,-500.0,0.00030873,5]
[344456974,1733496425866,-587.47741933,0.00030873,5]
[344456975,1733496425886,-500.0,0.00030873,5]
[344456976,1733496425908,-500.0,0.00030873,5]
[344456977,1733496425928,-158.27979009,0.00030873,2]
[344456978,1733496425949,-500.0,0.00030894,2]
[344456979,1733496425971,-500.0,0.00030894,2]
[344456980,1733496425993,-500.0,0.00030894,2]
[344456981,1733496426013,-500.0,0.00030894,2]
[344456982,1733496426039,-500.0,0.00030894,2]
[344456983,1733496426059,-423.64777105,0.00030894,2]
[344456984,1733496426082,-500.0,0.00030894,2]
[344456985,1733496426104,-500.0,0.00030894,2]
[344456986,1733496426125,-500.0,0.00030894,2]
[344456987,1733496426151,-500.0,0.00030894,2]
[344456988,1733496426173,-500.0,0.00030894,2]
[344456989,1733496426193,-192.34450777,0.00030894,2]
[344456990,1733496426215,-620.44369689,0.00030894,2]
[344456991,1733496426238,-500.0,0.00030894,2]
[344456992,1733496426261,-500.0,0.00030894,2]
[344456993,1733496426284,-500.0,0.00030894,2]
[344456994,1733496426307,-500.0,0.00030894,2]
[344456995,1733496426328,-500.0,0.00030894,2]
[344456996,1733496426352,-500.0,0.00030894,2]
[344456997,1733496426372,-461.00025864,0.00030894,2]
[344456998,1733496426398,-466.96219937,0.00030894,2]
[344456999,1733496426419,-500.0,0.00030894,2]
[344457000,1733496426440,-500.0,0.00030894,2]
[344457001,1733496426463,-500.0,0.00030894,2]
[344457002,1733496426486,-500.0,0.00030894,2]
[344457003,1733496426508,-500.0,0.00030894,2]
[344457004,1733496426529,-500.0,0.00030894,2]
[344457005,1733496426552,-500.0,0.00030894,2]
[344457006,1733496426573,-272.04549357,0.00030894,2]
[344457007,1733496426594,-500.0,0.00030894,2]
[344457008,1733496426616,-500.0,0.00030894,2]
[344457009,1733496426637,-500.0,0.00030894,2]
[344457010,1733496426660,-500.0,0.00030894,2]
[344457011,1733496426681,-500.0,0.00030894,2]
[344457012,1733496426704,-500.0,0.00030894,2]
[344457013,1733496426727,-566.50125774,0.00030894,2]
[344457014,1733496426749,-500.0,0.00030894,2]
[344457015,1733496426773,-500.0,0.00030894,2]
[344457016,1733496426796,-500.0,0.00030894,2]
[344457017,1733496426820,-500.0,0.00030894,2]
[344457018,1733496426843,-500.0,0.00030894,2]
[344457019,1733496426877,-500.0,0.00030894,2]
[344457020,1733496426904,-500.0,0.00030894,2]
[344457021,1733496426927,-500.0,0.00030894,2]
[344457022,1733496426950,-500.0,0.00030894,2]
[344457023,1733496426973,-500.0,0.00030894,2]
[344457024,1733496426997,-500.0,0.00030894,2]
[344457025,1733496427020,-500.0,0.00030894,2]
[344457026,1733496427043,-500.0,0.00030894,2]
[344457027,1733496427067,-500.0,0.00030894,2]
[344457028,1733496427091,-500.0,0.00030894,2]
[344457029,1733496427115,-500.0,0.00030894,2]
[344457030,1733496427139,-500.0,0.00030894,2]
[344457031,1733496427165,-500.0,0.00030894,2]
[344457032,1733496427189,-500.0,0.00030894,2]
[344457033,1733496427211,-500.0,0.00030894,2]
[344457034,1733496427234,-500.0,0.00030894,2]
[344457035,1733496427258,-500.0,0.00030894,2]
[344457036,1733496427279,-500.0,0.00030894,2]
[344457037,1733496427303,-500.0,0.00030894,2]
[344457038,1733496427329,-500.0,0.00030894,2]
[344457039,1733496427354,-500.0,0.00030894,2]
[344457040,1733496427377,-500.0,0.00030894,2]
[344457041,1733496427406,-250.0,0.00030894,2]
[344457042,1733496427429,-8364.74741396,0.00030894,2]
[344457043,1733496443132,-18520.79204654,0.00030894,2]
[344457044,1733496443161,-1604.0,0.000309,4]
[344457045,1733496443182,-500.0,0.00030919,3]
[344457046,1733496443203,-500.0,0.00030919,7]
[344457047,1733496443224,-500.0,0.00030919,7]
[344457048,1733496443245,-253.96139626,0.00030919,7]
[344457049,1733496443265,-500.0,0.00030919,7]
[344457050,1733496443286,-500.0,0.00030919,7]
[344457051,1733496443307,-500.0,0.00030919,7]
[344457052,1733496443332,-500.0,0.00030919,7]
[344457053,1733496443352,-500.0,0.00030919,7]
[344457054,1733496443373,-500.0,0.00030919,7]
[344457055,1733496443394,-500.0,0.00030919,7]
[344457056,1733496443418,-500.0,0.00030919,7]
[344457057,1733496443439,-500.0,0.00030919,7]
[344457058,1733496443460,-500.0,0.00030919,7]
[344457059,1733496443480,-500.0,0.00030919,7]
[344457060,1733496443501,-500.0,0.00030919,7]
[344457061,1733496443523,-500.0,0.00030919,7]
[344457062,1733496443544,-225.6331138,0.00030919,7]
[344457063,1733496443567,-1000.0,0.00030923,8]
[344457064,1733496443588,-1000.0,0.00030923,22]
[344457065,1733496443708,-334.94,0.00031,30]
[344457066,1733496443732,-207.21,0.00031,30]
[344457067,1733496443753,-5120.83,0.00031,2]
[344457068,1733496443774,-160.43,0.00031,2]
[344457069,1733496443816,-158.08,0.00031,31]
[344457070,1733496443839,-188.42418882,0.00031173,5]
[344457071,1733496443864,-150.01,0.00031189,2]
[344457072,1733496443886,-100905.36555572,0.0003119,2]
[344457211,1733496633238,-500.0,0.00029999,3]
[344457212,1733496633248,-500.0,0.00030136,7]
[344457214,1733496633257,-639.72481799,0.00030136,7]
[344457216,1733496633267,-513.3720352,0.00030136,7]
[344457217,1733496633276,-500.0,0.00030136,7]
[344457218,1733496633285,-500.0,0.00030136,7]
[344457220,1733496633294,-500.0,0.00030136,7]
[344457222,1733496633304,-500.0,0.00030136,7]
[344457224,1733496633313,-1556.85219868,0.00030795,2]
[344457226,1733496633322,-524.51416191,0.000308,120]
[344457228,1733496633332,-500.0,0.00030804,7]
[344457230,1733496633343,-500.0,0.00030893,7]
[344457232,1733496633352,-500.0,0.00030893,7]
[344457234,1733496633362,-640.67089938,0.00030893,7]
[344457236,1733496633375,-402.44874784,0.00030893,7]
[344457719,1733496638277,-218.06,0.000302,2]
[344457721,1733496638287,-97.55125216,0.00030893,7]
[344457723,1733496638296,-500.0,0.00030893,7]
[344457726,1733496638306,-500.0,0.00030893,7]
[344457728,1733496638315,-497.41180058,0.00030894,2]
[344457730,1733496638325,-500.0,0.00030894,2]
[344457731,1733496638334,-362.29598827,0.00030894,2]
[344457732,1733496638347,-185.10919667,0.00030894,2]
[344457733,1733496638356,-200.0,0.00030894,2]
[344457734,1733496638367,-500.0,0.00030894,2]
[344457735,1733496638381,-325.16887399,0.00030894,2]
[344457736,1733496638390,-500.0,0.00030894,7]
[344457737,1733496638400,-500.0,0.00030894,7]
[344457738,1733496638410,-13442.76973025,0.00030894,2]
[344457739,1733496638421,-138104.47336718,0.00030895,10]
[344457740,1733496638431,-343717.7237909,0.00030895,10]
[344457758,1733496638682,-14235.24146291,0.00030895,10]
[344457761,1733496638692,-1079.16701499,0.00030895,10]
[344457932,1733496640378,-99022.93773539,0.00030895,10]
[344457938,1733496640425,-7.94709259,0.00030895,10]
[344458261,1733496643586,-85.17284836,0.00030895,10]
[344458534,1733496646338,-3932.27200004,0.00030895,10]
[344461001,1733496724615,310.1187417,0.00013973,2]
[344461002,1733497547133,-208.16381497,0.00025818,2]
[344461003,1733497570279,-1000.0,0.00031506,116]
[344461004,1733497745158,-172.2820421,0.00025368,2]
[344461005,1733497745183,-1650.4413244,0.00025558,2]
[344461006,1733497745209,-327.22763603,0.00025818,2]
[344461007,1733497745233,-184.777309,0.00025969,2]
[344461008,1733497745257,-181.669451,0.00026301,2]
[344461009,1733497745280,-660.0,0.00026384,2]
[344461010,1733497745302,-300.0,0.00026535,2]
[344461011,1733497745324,-300.0,0.00026535,2]
[344461012,1733497745346,-24880.0,0.00026536,2]
[344461013,1733497745368,-13987.1983159,0.00027311,2]
[344461014,1733497745395,-250.0,0.00027413,2]
[344461015,1733497745418,-168.551212,0.00027609,2]
[344461016,1733497745440,-1824.0199918,0.00027698,2]
[344461017,1733497745461,-1549.3522185,0.00027769,2]
[344461018,1733497747491,184.271325,0.00027259,2]
[344461063,1733497832597,-181.669451,0.00028248,2]
[344461065,1733497832606,-184.271325,0.00028278,2]
[344461068,1733497832616,-300.0,0.00028299,2]
[344461069,1733497832626,-300.0,0.00028299,2]
[344461071,1733497832636,-3040.959224,0.000283,2]
[344461163,1733497834272,-1367.313084,0.000283,2]
[344461164,1733497834286,-463.985,0.000283,2]
[344461165,1733497834299,-541.3996666,0.000283,2]
[344461190,1733497838600,-10835.92932337,0.000283,2]
[344461191,1733497838610,-344.28090134,0.00028601,2]
[344461192,1733497838620,-1220.2666392,0.00028761,2]
[344461193,1733497838629,-184.271325,0.00029297,2]
[344461194,1733497838638,-336.943,0.0002963,2]
[344461195,1733497838647,-500.0,0.00029873,5]
[344461196,1733497838657,-150.0,0.0003,2]
[344461197,1733497838666,-2614.21874017,0.00030036,2]
[344461198,1733497838675,-387.0,0.000301,14]
[344461199,1733497838687,-541.41186944,0.00030136,2]
[344461200,1733497838697,-502.8290719,0.00030136,7]
[344461201,1733497838707,-506.86263022,0.00030136,7]
[344461202,1733497838716,-502.14402728,0.00030136,7]
[344461203,1733497838726,-532.34543463,0.00030136,7]
[344461204,1733497838736,-501.3973285,0.00030136,7]
[344461205,1733497838745,-500.0,0.00030136,7]
[344461206,1733497838755,-500.0,0.00030136,7]
[344461207,1733497838764,-197.15472551,0.00030136,7]
[344461208,1733497838776,-501.57668479,0.00030136,7]
[344461209,1733497838789,-260.0551956,0.00030136,7]
[344461210,1733497838798,-500.0,0.00030136,7]
[344461211,1733497838807,-500.0,0.00030136,7]
[344461212,1733497838816,-500.0,0.00030136,7]
[344461213,1733497838836,-503.82429031,0.00030136,7]
[344461214,1733497838846,-352.92743638,0.00030136,7]
[344461215,1733497838855,-505.02515541,0.00030136,7]
[344461216,1733497838865,-205.67706396,0.00030136,7]
[344461217,1733497838874,-503.13558189,0.00030136,7]
[344461218,1733497838884,-500.0,0.00030136,7]
[344461219,1733497838894,-500.0,0.00030136,7]
[344461220,1733497838903,-502.82555233,0.00030136,7]
[344461221,1733497838912,-502.65638944,0.00030136,7]
[344461222,1733497838922,-500.0,0.00030136,7]
[344461223,1733497838931,-500.0,0.00030136,7]
[344461224,1733497838944,-500.0,0.00030136,7]
[344461225,1733497838954,-502.36786243,0.00030136,7]
[344461226,1733497838963,-484.09502139,0.00030136,5]
[344461227,1733497838972,-503.84032175,0.00030136,7]
[344461228,1733497838981,-507.31616338,0.00030136,7]
[344461229,1733497838991,-480.34669901,0.00030136,7]
[344461230,1733497839000,-500.0,0.00030136,7]
[344461231,1733497839010,-500.0,0.00030136,7]
[344461232,1733497839020,-500.0,0.00030136,7]
[344461233,1733497839030,-509.75773392,0.00030136,7]
[344461234,1733497839039,-507.03487377,0.00030136,7]
[344461235,1733497839049,-640.46360428,0.00030136,7]
[344461236,1733497839059,-502.38622775,0.00030136,7]
[344461237,1733497839068,-517.24,0.00030136,7]
[344461238,1733497839078,-517.24,0.00030136,7]
[344461239,1733497839087,-462.37280251,0.00030136,7]
[344461240,1733497839097,-460.4650306,0.00030136,7]
[344461241,1733497839106,-500.0,0.00030136,7]
[344461242,1733497839116,-500.0,0.00030136,7]
[344461243,1733497839126,-500.0,0.00030136,7]
[344461244,1733497839135,-500.0,0.00030136,7]
[344461245,1733497839144,-500.0,0.00030136,7]
[344461246,1733497839154,-500.0,0.00030136,7]
[344461247,1733497839163,-567.64,0.00030136,7]
[344461248,1733497839172,-567.64,0.00030136,7]
[344461249,1733497839182,-567.64,0.00030136,7]
[344461250,1733497839194,-500.0,0.00030136,7]
[344461251,1733497839204,-500.0,0.00030136,7]
[344461252,1733497839213,-500.0,0.00030136,7]
[344461253,1733497839223,-500.0,0.00030136,7]
[344461254,1733497839232,-501.5490734,0.00030136,7]
[344461255,1733497839244,-500.0,0.00030136,7]
[344461256,1733497839253,-500.0,0.00030136,7]
[344461257,1733497839263,-500.0,0.00030136,7]
[344461258,1733497839272,-500.0,0.00030136,7]
[344461259,1733497839282,-500.0,0.00030136,7]
[344461260,1733497839291,-500.0,0.00030136,7]
[344461261,1733497839300,-500.0,0.00030136,7]
[344461262,1733497839310,-500.0,0.00030136,7]
[344461263,1733497839319,-500.0,0.00030136,7]
[344461264,1733497839329,-500.0,0.00030136,7]
[344461265,1733497839338,-500.0,0.00030136,7]
[344461266,1733497839347,-500.0,0.00030136,7]
[344461267,1733497839357,-500.0,0.00030136,7]
[344461268,1733497839366,-500.0,0.00030136,7]
[344461269,1733497839375,-500.0,0.00030136,7]
[344461270,1733497839385,-500.0,0.00030136,7]
[344461271,1733497839394,-597.09994528,0.00030136,7]
[344461272,1733497839404,-215.99074586,0.00030136,7]
[344461273,1733497839413,-500.0,0.00030136,7]
[344461274,1733497839422,-500.0,0.00030136,7]
[344461275,1733497839432,-500.0,0.00030136,7]
[344461276,1733497839446,-500.0,0.00030136,7]
[344461277,1733497839455,-500.0,0.00030136,7]
[344461278,1733497839581,-500.0,0.00030136,7]
[344461279,1733497839592,-500.0,0.00030136,7]
[344461280,1733497839603,-500.0,0.00030136,2]
[344461281,1733497839613,-500.0,0.00030136,7]
[344461282,1733497839622,-500.0,0.00030136,7]
[344461283,1733497839631,-500.0,0.00030136,7]
[344461284,1733497839641,-500.0,0.00030136,7]
[344461285,1733497839651,-500.0,0.00030136,7]
[344461286,1733497839660,-500.0,0.00030136,7]
[344461287,1733497839670,-500.0,0.00030136,7]
[344461288,1733497839679,-500.0,0.00030136,7]
[344461289,1733497839693,-500.0,0.00030136,7]
[344461290,1733497839703,-500.0,0.00030136,7]
[344461291,1733497839713,-2614.21874016,0.00030145,2]
[344461292,1733497839722,-181.669451,0.00030194,2]
[344461293,1733497839732,-263.72,0.000302,2]
[344461294,1733497839742,-2614.21874016,0.00030255,2]
[344461295,1733497839752,-2614.21874016,0.00030364,2]
[344461296,1733497839761,-517.24,0.00030413,7]
[344461297,1733497839772,-609.48747025,0.00030421,5]
[344461298,1733497839783,-2614.21874016,0.00030474,2]
[344461299,1733497839793,-500.0,0.00030541,7]
[344461300,1733497839803,-420.0,0.00030553,2]
[344461301,1733497839813,-5290.68567505,0.00030714,2]
[344461302,1733497839822,-469.41,0.00030798,7]
[344461303,1733497839831,-515.97178789,0.00030799,2]
[344461304,1733497839840,-515.97178789,0.000308,2]
[344461305,1733497839850,-515.97178789,0.00030801,2]
[344461306,1733497839859,-515.97178789,0.00030801,2]
[344461307,1733497839869,-515.97178789,0.00030802,2]
[344461308,1733497839879,-53098.62477246,0.00030833,120]
[344461309,1733497839932,-1551.9582126,0.00030833,120]
[344461324,1733497840659,-500.0,0.00030136,7]
[344461325,1733497840669,-62957.03246158,0.00030833,120]
[344461326,1733497840679,-500.0,0.00030893,3]
[344461327,1733497840693,-500.0,0.00030893,7]
[344461328,1733497840702,-500.0,0.00030893,7]
[344461329,1733497840711,-500.0,0.00030893,7]
[344461330,1733497840720,-165.71826401,0.00030893,7]
[344461331,1733497840730,-500.0,0.00030893,7]
[344461332,1733497840739,-500.0,0.00030893,7]
[344461333,1733497840749,-500.0,0.00030893,7]
[344461334,1733497840759,-500.0,0.00030893,7]
[344461335,1733497840768,-500.0,0.00030893,7]
[344461336,1733497840780,-500.0,0.00030893,7]
[344461337,1733497840790,-500.0,0.00030893,7]
[344461338,1733497840800,-500.0,0.00030893,7]
[344461339,1733497840811,-500.0,0.00030893,7]
[344461340,1733497840822,-500.0,0.00030893,7]
[344461341,1733497840831,-500.0,0.00030894,7]
[344461342,1733497840840,-204.35621861,0.00030894,7]
[344461343,1733497840851,-567.64,0.00030894,7]
[344461344,1733497840860,-618.75,0.00030894,7]
[344461345,1733497840870,-508.93948303,0.00030894,7]
[344461346,1733497840880,-500.0,0.00030894,7]
[344461347,1733497840889,-500.0,0.00030894,7]
[344461348,1733497840898,-500.0,0.00030894,7]
[344461349,1733497840908,-500.0,0.00030894,7]
[344461350,1733497840917,-500.0,0.00030894,7]
[344461351,1733497840926,-500.0,0.00030894,7]
[344461352,1733497840943,-500.0,0.00030894,7]
[344461353,1733497840954,-500.0,0.00030894,7]
[344461354,1733497840963,-500.0,0.00030894,7]
[344461355,1733497840973,-500.0,0.00030894,7]
[344461356,1733497840982,-500.0,0.00030894,7]
[344461357,1733497840991,-500.0,0.00030894,7]
[344461358,1733497841001,-500.0,0.00030894,7]
[344461359,1733497841011,-500.0,0.00030894,7]
[344461360,1733497841021,-500.0,0.00030894,7]
[344461361,1733497841030,-500.0,0.00030894,7]
[344461362,1733497841040,-169.74910531,0.00030894,7]
[344461363,1733497841049,-151.0,0.00030895,7]
[344461364,1733497841059,-151.0,0.00030895,7]
[344461365,1733497841069,-151.0,0.00030895,7]
[344461366,1733497841077,-151.0,0.00030895,7]
[344461367,1733497841087,-151.0,0.00030895,7]
[344461368,1733497841096,-151.0,0.00030895,7]
[344461369,1733497841105,-151.0,0.00030895,7]
[344461370,1733497841115,-151.0,0.00030895,7]
[344461371,1733497841124,-151.0,0.00030895,7]